fUSD/lending_fUSD_20240608
["ID","MTS","AMOUNT","RATE_DAILY","PERIOD"]
[328814139,1717824646130,-500.0,0.00029975,2]
[328814140,1717824646139,-500.0,0.00029975,2]
[328814142,1717824646149,-500.0,0.00029975,2]
[328814145,1717824646159,-500.0,0.00029975,2]
[328814146,1717824646169,-500.0,0.00029975,2]
[328814148,1717824646179,-500.0,0.00029975,2]
[328814150,1717824646188,-500.0,0.00029975,2]
[328814152,1717824646198,-500.0,0.00029975,2]
[328814154,1717824646208,-500.0,0.00029975,2]
[328814156,1717824646218,-500.0,0.00029975,2]
[328814158,1717824646227,-500.0,0.00029975,2]
[328814161,1717824646237,-500.0,0.00029975,2]
[328814164,1717824646247,-500.0,0.00029975,2]
[328814167,1717824646256,-500.0,0.00029975,2]
[328814170,1717824646266,-500.0,0.00029975,2]
[328814172,1717824646275,-500.0,0.00029975,2]
[328814174,1717824646285,-500.0,0.00029975,2]
[328814176,1717824646294,-500.0,0.00029975,2]
[328814178,1717824646304,-500.0,0.00029975,2]
[328814180,1717824646314,-500.0,0.00029975,2]
[328814182,1717824646323,-500.0,0.00029975,2]
[328814184,1717824646333,-500.0,0.00029975,2]
[328814186,1717824646342,-500.0,0.00029975,2]
[328814189,1717824646352,-500.0,0.00029975,2]
[328814192,1717824646362,-500.0,0.00029975,2]
[328814195,1717824646371,-500.0,0.00029975,2]
[328814198,1717824646381,-500.0,0.00029975,2]
[328814200,1717824646390,-500.0,0.00029975,2]
[328814202,1717824646400,-500.0,0.00029975,2]
[328814204,1717824646409,-500.0,0.00029975,2]
[328814206,1717824646419,-500.0,0.00029975,2]
[328814208,1717824646429,-500.0,0.00029975,2]
[328814210,1717824646439,-500.0,0.00029975,2]
[328814212,1717824646448,-500.0,0.00029975,2]
[328814214,1717824646459,-500.0,0.00029975,2]
[328814216,1717824646469,-500.0,0.00029975,2]
[328814218,1717824646479,-500.0,0.00029975,2]
[328814220,1717824646489,-500.0,0.00029975,2]
[328814222,1717824646499,-500.0,0.00029975,2]
[328814224,1717824646508,-500.0,0.00029975,2]
[328814226,1717824646518,-328.9995793,0.00029979,2]
[328814228,1717824646528,-319.6269461,0.00029979,2]
[328814230,1717824646539,-310.254313,0.00029979,2]
[328814232,1717824646548,-300.8816799,0.00029979,2]
[328814234,1717824646558,-291.5090467,0.00029979,2]
[328814236,1717824646568,-351.09447352,0.00029989,2]
[328814238,1717824646583,-338.3722124,0.00029989,2]
[328814240,1717824646592,-263.38471331,0.00029995,2]
[328814242,1717824646602,-588.62,0.00029997,4]
[328814244,1717824646612,-1845.22,0.00029997,4]
[328814246,1717824646622,-2100.0,0.00029997,2]
[328814248,1717824646631,-214.0,0.00029998,5]
[328814250,1717824646640,-296932.62122157,0.00029998,13]
[328814252,1717824646650,-6417.78677408,0.00029998,3]
[328814254,1717824646662,-241.57981572,0.00029998,2]
[328814256,1717824646673,-212.1908023,0.00029998,2]
[328814258,1717824646683,-155.0,0.00029998,2]
[328814260,1717824646693,-155.87030942,0.00029998,2]
[328814262,1717824646703,-156.08892722,0.00029998,2]
[328814264,1717824646713,-217.94215905,0.00029998,2]
[328814266,1717824646723,-19118.65660328,0.00029998,2]
[328814268,1717824646733,-155.40277861,0.00029998,2]
[328814270,1717824646743,-159.06838526,0.00029998,2]
[328814272,1717824646752,-422.88216961,0.00029998,2]
[328814274,1717824646763,-235.55230443,0.00029998,2]
[328814276,1717824646773,-226.65319436,0.00029998,2]
[328814278,1717824646784,-234.70114228,0.00029998,2]
[328814280,1717824646793,-155.0,0.00029998,2]
[328814282,1717824646803,-489.81743088,0.00029998,2]
[328814284,1717824646813,-617.61775992,0.00029998,2]
[328814286,1717824646823,-537.64011299,0.00029998,2]
[328814288,1717824646832,-812.69472264,0.00029998,2]
[328814290,1717824646843,-200.0,0.00029998,2]
[328814292,1717824646853,-216.99201886,0.00029998,2]
[328814294,1717824646863,-618.8768531,0.00029998,2]
[328814296,1717824646873,-155.26878002,0.00029998,2]
[328814298,1717824646882,-1805.05840051,0.00029998,2]
[328814300,1717824646892,-649.34168046,0.00029998,2]
[328814302,1717824646901,-412.69044101,0.00029998,2]
[328814304,1717824646912,-250.32638705,0.00029998,2]
[328814306,1717824646922,-227.32944019,0.00029998,2]
[328814309,1717824646932,-299.16079708,0.00029998,2]
[328814311,1717824646941,-3891.02501567,0.00029998,2]
[328814313,1717824646950,-156.91778106,0.00029998,2]
[328814314,1717824646959,-155.69313599,0.00029998,2]
[328814317,1717824646969,-6258.42600459,0.00029998,2]
[328814319,1717824646978,-33691.19358107,0.00029998,2]
[328814321,1717824646987,-305.631574,0.00029998,2]
[328814323,1717824646997,-789.19827628,0.00029998,2]
[328814325,1717824647006,-1287.30331535,0.00029998,2]
[328814327,1717824647017,-155.78011462,0.00029998,2]
[328814329,1717824647026,-864.25440509,0.00029998,3]
[328814331,1717824647036,-1010.86316582,0.00029998,2]
[328814332,1717824647046,-7600.0,0.00029998,2]
[328814335,1717824647055,-1779.87235949,0.00029998,2]
[328814337,1717824647065,-403.42300542,0.00029998,2]
[328814339,1717824647075,-155.46593818,0.00029998,2]
[328814340,1717824647084,-151.0,0.00029998,7]
[328814342,1717824647093,-163.58914,0.00029998,7]
[328814344,1717824647103,-170.761906,0.00029998,7]
[328814346,1717824647112,-156.742576,0.00029998,7]
[328814348,1717824647122,-151.0,0.00029998,7]
[328814350,1717824647132,-151.0,0.00029998,7]
[328814352,1717824647141,-151.0,0.00029998,7]
[328814355,1717824647151,-215.678823,0.00029998,7]
[328814357,1717824647161,-151.0,0.00029998,7]
[328814359,1717824647170,-151.0,0.00029998,7]
[328814361,1717824647180,-1658.398325,0.00029998,7]
[328814363,1717824647189,-1658.398325,0.00029998,7]
[328814365,1717824647199,-186.572124,0.00029998,7]
[328814367,1717824647210,-186.572124,0.00029998,7]
[328814369,1717824647219,-171.658261,0.00029998,7]
[328814371,1717824647230,-151.0,0.00029998,7]
[328814373,1717824647239,-171.658261,0.00029998,7]
[328814375,1717824647249,-151.0,0.00029998,7]
[328814377,1717824647260,-158.770074,0.00029998,7]
[328814379,1717824647269,-151.0,0.00029998,7]
[328814381,1717824647279,-151.0,0.00029998,7]
[328814383,1717824647288,-187.413953,0.00029998,7]
[328814385,1717824647298,-151.0,0.00029998,7]
[328814387,1717824647308,-185.996745,0.00029998,7]
[328814389,1717824647317,-185.996745,0.00029998,7]
[328814391,1717824647327,-254.772004,0.00029998,7]
[328814392,1717824647336,-151.0,0.00029998,7]
[328814394,1717824647346,-186.343515,0.00029998,7]
[328814396,1717824647355,-186.343515,0.00029998,7]
[328814398,1717824647365,-151.0,0.00029998,7]
[328814400,1717824647375,-151.0,0.00029998,7]
[328814402,1717824647385,-190.377888,0.00029998,7]
[328814404,1717824647395,-151.0,0.00029998,7]
[328814406,1717824647406,-151.0,0.00029998,7]
[328814408,1717824647416,-151.0,0.00029998,7]
[328814410,1717824647426,-151.0,0.00029998,7]
[328814413,1717824647436,-512.225141,0.00029998,7]
[328814415,1717824647446,-512.225141,0.00029998,7]
[328814417,1717824647456,-151.0,0.00029998,7]
[328814418,1717824647466,-9146.0,0.00029998,2]
[328814421,1717824647476,-2000.0,0.00029999,2]
[328814422,1717824647486,-213.11590925,0.00029999,2]
[328814424,1717824647496,-500.0,0.00029999,2]
[328814426,1717824647506,-500.0,0.00029999,2]
[328814428,1717824647516,-560.69261742,0.00029999,2]
[328814431,1717824647526,-500.0,0.00029999,2]
[328814433,1717824647536,-421.75353308,0.00029999,2]
[328814435,1717824647546,-151.0,0.00029999,7]
[328814436,1717824647557,-151.0,0.00029999,7]
[328814437,1717824647566,-268.430679,0.00029999,7]
[328814438,1717824647582,-151.0,0.00029999,7]
[328814439,1717824647591,-151.0,0.00029999,7]
[328814440,1717824647600,-151.0,0.00029999,7]
[328814441,1717824647610,-165.660879,0.00029999,7]
[328814442,1717824647620,-151.0,0.00029999,7]
[328814444,1717824647629,-151.0,0.00029999,7]
[328814446,1717824647639,-588.62,0.00029999,4]
[328814448,1717824647650,-588.62,0.00029999,4]
[328814450,1717824647660,-588.62,0.00029999,4]
[328814452,1717824647669,-588.62,0.00029999,4]
[328814454,1717824647679,-588.62,0.00029999,4]
[328814456,1717824647688,-588.62,0.00029999,4]
[328814457,1717824647697,-588.62,0.00029999,4]
[328814459,1717824647707,-588.62,0.00029999,4]
[328814461,1717824647717,-588.62,0.00029999,4]
[328814463,1717824647726,-588.62,0.00029999,4]
[328814465,1717824647736,-588.62,0.00029999,4]
[328814467,1717824647746,-588.62,0.00029999,4]
[328814469,1717824647756,-588.62,0.00029999,4]
[328814471,1717824647765,-588.62,0.00029999,4]
[328814473,1717824647774,-588.62,0.00029999,4]
[328814475,1717824647784,-588.62,0.00029999,4]
[328814477,1717824647793,-588.85391151,0.00029999,4]
[328814479,1717824647803,-1845.22,0.00029999,4]
[328814483,1717824647948,-1845.22,0.00029999,4]
[328814484,1717824647960,-1845.22,0.00029999,4]
[328814485,1717824647971,-1845.22,0.00029999,4]
[328814486,1717824647981,-1845.22,0.00029999,4]
[328814487,1717824647991,-1845.22,0.00029999,4]
[328814488,1717824648001,-1845.22,0.00029999,4]
[328814489,1717824648011,-1845.22,0.00029999,4]
[328814490,1717824648021,-1845.22,0.00029999,4]
[328814491,1717824648031,-1845.22,0.00029999,4]
[328814492,1717824648041,-1845.22,0.00029999,4]
[328814493,1717824648052,-1845.22,0.00029999,4]
[328814494,1717824648062,-1845.22,0.00029999,4]
[328814495,1717824648072,-1845.22,0.00029999,4]
[328814496,1717824648083,-1845.22,0.00029999,4]
[328814497,1717824648092,-1845.2233099,0.00029999,4]
[328814498,1717824648102,-1486.54257938,0.0003,5]
[328814499,1717824648111,-2577302.82424492,0.0003,2]
[328814500,1717824648237,-659.94278815,0.0003,2]
[328814501,1717824648252,-2050.79561792,0.0003,2]
[328814502,1717824648263,-540.03696323,0.0003,2]
[328814503,1717824648275,-2137.20870813,0.0003,2]
[328814505,1717824844061,-662.64780702,0.00013999,2]
[328814508,1717824989694,-1337.33567298,0.00013998,2]
[328814514,1717825283210,-1248.9758342,0.00012997,2]
[328814515,1717825283241,-925.88123363,0.00012998,2]
[328814516,1717825283270,-896.93896264,0.00013,2]
[328814517,1717825283298,-4090.4465,0.000139,2]
[328814518,1717825283324,-1337.33778513,0.00013999,2]
[328814519,1717825283352,-21500.4196844,0.00014,2]
[328814525,1717825382635,-236.79822486,0.00013999,2]
[328814526,1717825382663,-206257.20177514,0.00014,2]
[328814532,1717825525651,1016.35,0.000275,120]
[328814533,1717825628110,-327.09381956,0.00013899,2]
[328814534,1717825628137,-158.44323915,0.000139,2]
[328814535,1717825628164,-1721.5167,0.000139,2]
[328814536,1717825628187,-3345.46033266,0.000139,2]
[328814537,1717825652104,-300.0,0.000134,4]
[328814538,1717825652128,-700.0,0.000135,4]
[328814539,1717825652151,-1100.0,0.000136,4]
[328814540,1717825652175,-738.45571854,0.000137,5]
[328814541,1717825731539,-761.54428146,0.000137,5]
[328814542,1717825731565,-1239.43183854,0.000138,5]
[328814544,1717825787100,-660.56816146,0.000138,5]
[328814567,1717825832709,-155.61762711,0.000137,2]
[328814568,1717825832720,-4248.75845082,0.00013799,2]
[328814569,1717825832730,-257.823,0.000139,2]
[328814570,1717825832739,-300.0,0.000139,5]
[328814571,1717825832749,-265.08994816,0.000139,2]
[328814572,1717825832759,-91.27109915,0.000139,2]
[328814573,1717825832771,-685.05424735,0.000139,2]
[328814574,1717825832783,-484.32,0.000139,2]
[328814575,1717825832863,-997.32022375,0.000139,2]
[328814576,1717825832876,-258.76851609,0.000139,2]
[328814577,1717825832890,-898.53028455,0.000139,2]
[328814578,1717825832904,-433.22631026,0.000139,2]
[328814579,1717825832913,-150.0,0.00013973,2]
[328814580,1717825832923,-150.0,0.00013997,2]
[328814581,1717825832933,-155.0,0.00013998,2]
[328814582,1717825832944,-296.73266768,0.00013998,2]
[328814583,1717825832957,-282.86566183,0.00013998,2]
[328814584,1717825832967,-286.85617983,0.00013998,2]
[328814585,1717825832977,-542.74309925,0.00013998,2]
[328814586,1717825832987,-1489.78467668,0.00013999,2]
[328814587,1717825832998,-3064.8950057,0.00013999,2]
[328814588,1717825833007,-155.0,0.00013999,2]
[328814589,1717825833017,-523.24313416,0.00013999,2]
[328814590,1717825833030,-3919.5055387,0.00013999,2]
[328814591,1717825833040,-155.0,0.00013999,2]
[328814592,1717825833050,-1253.00742069,0.00013999,2]
[328814593,1717825833060,-10535.96438958,0.00013999,2]
[328814594,1717825833070,-155.0,0.00013999,2]
[328814595,1717825833079,-499.99,0.00013999,2]
[328814596,1717825833089,-27366.21856358,0.00014,2]
[328814597,1717825833101,-338.70707334,0.00014,2]
[328814598,1717825833113,-33308.06630699,0.00014,2]
[328814599,1717825833125,-505.43,0.00014,2]
[328814600,1717825833138,-1787.79262242,0.00014,2]
[328814601,1717825833151,-1125.37386281,0.00014,2]
[328814603,1717825833162,-1331.32137545,0.00014,2]
[328814606,1717825833173,-3913.38875614,0.00014,2]
[328814608,1717825833185,-585.88473432,0.00014,2]
[328814610,1717825833196,-4880.67152514,0.00014,2]
[328814633,1717825841316,-914.0500234,0.00014,2]
[328814634,1717825841329,-8682.59304591,0.00014,2]
[328814635,1717825841340,-11195.46716759,0.00014,2]
[328814636,1717825841357,-5556.73676619,0.00014,2]
[328814637,1717825841369,-1295.8075908,0.00014,2]
[328814638,1717825841478,-1009.91881608,0.00014,2]
[328814639,1717825841490,-7231.84800193,0.00014,2]
[328814640,1717825841676,-430.8040776,0.00014,2]
[328814641,1717825841693,-1251.34130064,0.00014,2]
[328814642,1717825841705,-729.82228752,0.00014,2]
[328814648,1717825842362,-7403.39177944,0.00014,2]
[328814649,1717825842539,-2e-08,0.00014,2]
[328814658,1717825843897,-2965.21521599,0.00014,2]
[328814659,1717825844061,-5025.68450189,0.00014,2]
[328814660,1717825844074,-532.148705,0.00014,2]
[328814661,1717825844589,-7669.19578625,0.00014,2]
[328814663,1717825844601,-7141.02530335,0.00014,2]
[328814666,1717825844613,-945.94728984,0.00014,2]
[328814694,1717825847124,-9614.8499925,0.00014,2]
[328814695,1717825847136,-14022.2776274,0.00014,2]
[328814696,1717825847148,-3783.4017,0.00014,2]
[328814697,1717825847173,-0.01760347,0.00014,2]
[328814700,1717826619969,-455.68552324,0.00012458,2]
[328814701,1717826619995,-427.7569255,0.00013786,2]
[328814702,1717826620016,-158.86276178,0.000138,2]
[328814703,1717826620042,-300.0,0.00013899,2]
[328814704,1717826620065,-150.0,0.00013899,2]
[328814705,1717826620088,-165.57082688,0.000139,2]
[328814706,1717826620111,-3190.5144,0.000139,2]
[328814707,1717826620359,-231.95370464,0.000139,2]
[328814708,1717826620391,-2565.6604541,0.000139,2]
[328814709,1717826620414,-353.99540386,0.000139,2]
[328814718,1717827008673,164.42351398,0.00013999,7]
[328814721,1717827032296,-156.4486,0.000138,2]
[328814722,1717827032311,-667.56143626,0.0001389,2]
[328814723,1717827032327,-230.07588524,0.000139,2]
[328814724,1717827032349,-6949.17054274,0.000139,2]
[328814725,1717827032467,-616.38964815,0.000139,2]
[328814726,1717827032481,-7891.83972001,0.000139,2]
[328814727,1717827032495,-1198.88749656,0.000139,2]
[328814728,1717827032507,-158.44323915,0.000139,2]
[328814729,1717827032518,-6479.30472066,0.000139,2]
[328814734,1717827038825,-10707.38655739,0.000139,2]
[328814737,1717827038839,-442.2627002,0.000139,2]
[328814738,1717827039024,-441.0,0.000139,2]
[328814739,1717827039074,-165.42061467,0.000139,2]
[328814740,1717827039190,-130062.45410877,0.000139,2]
[328814763,1717827043674,-2080.68,0.000139,2]
[328814764,1717827043690,-1472.96,0.000139,2]
[328814765,1717827043703,-1034.7168,0.000139,2]
[328814766,1717827043716,-2095.47289142,0.000139,2]
[328814767,1717827043729,-9452.94414771,0.000139,2]
[328814768,1717827043740,-218.09054492,0.000139,2]
[328814769,1717827043751,-174.98775606,0.000139,2]
[328814770,1717827043763,-510.69085107,0.000139,2]
[328814771,1717827043774,-1710.44030274,0.000139,2]
[328814772,1717827044005,-382.99991123,0.00013998,2]
[328814773,1717827044021,-602.63106363,0.00013998,2]
[328814774,1717827044030,-320.14584657,0.00013998,2]
[328814775,1717827044040,-172.13878346,0.00013998,2]
[328814776,1717827044050,-165.24095706,0.00013998,2]
[328814777,1717827044059,-264.4340714,0.00013998,2]
[328814778,1717827044068,-156.17048262,0.00013998,2]
[328814780,1717827044078,-155.0,0.00013998,2]
[328814781,1717827044087,-160.54086438,0.00013998,2]
[328814783,1717827044096,-277.43323922,0.00013998,2]
[328814785,1717827044107,-213.88980395,0.00013998,2]
[328814787,1717827044117,-646.2410345,0.00013998,2]
[328814789,1717827044126,-155.87067499,0.00013998,2]
[328814791,1717827044135,-1616.01769669,0.00013998,2]
[328814793,1717827044145,-410.97295669,0.00013998,2]
[328814795,1717827044155,-156.29787113,0.00013998,2]
[328814797,1717827044164,-263.26519163,0.00013998,2]
[328814799,1717827044174,-1067.04191087,0.00013998,2]
[328814801,1717827044183,-284.11394358,0.00013998,2]
[328814803,1717827044193,-156.12777516,0.00013998,2]
[328814805,1717827044203,-157.47766349,0.00013998,2]
[328814807,1717827044212,-200.37180645,0.00013998,2]
[328814809,1717827044222,-664.4436507,0.00013998,2]
[328814811,1717827044231,-155.54684316,0.00013998,2]
[328814813,1717827044241,-155.89729398,0.00013998,2]
[328814815,1717827044251,-200.97845383,0.00013998,2]
[328814817,1717827044261,-160.33590679,0.00013998,2]
[328814819,1717827044271,-155.0,0.00013998,2]
[328814821,1717827044281,-156.68130869,0.00013998,2]
[328814823,1717827044290,-325.16380527,0.00013998,2]
[328814825,1717827044300,-283.10014109,0.00013998,2]
[328814827,1717827044311,-306.91793765,0.00013998,2]
[328814829,1717827044326,-156.15237966,0.00013998,2]
[328814831,1717827044336,-157.44296407,0.00013998,2]
[328814833,1717827044346,-156.10178131,0.00013998,2]
[328814835,1717827044358,-223.44815964,0.00013998,2]
[328814837,1717827044368,-211.24231993,0.00013998,2]
[328814839,1717827044378,-1319.63724125,0.00013998,2]
[328814841,1717827044388,-161.86047378,0.00013998,2]
[328814843,1717827044401,-155.37503968,0.00013998,2]
[328814845,1717827044412,-186.8085885,0.00013998,2]
[328814847,1717827044421,-173.00995606,0.00013998,2]
[328814849,1717827044432,-195.02071198,0.00013998,2]
[328814851,1717827044441,-157.98831248,0.00013998,2]
[328814853,1717827044451,-189.35448094,0.00013998,2]
[328814855,1717827044462,-210.70788545,0.00013998,2]
[328814857,1717827044472,-155.40153651,0.00013998,2]
[328814859,1717827044483,-155.0,0.00013998,2]
[328814861,1717827044493,-156.17016932,0.00013998,2]
[328814863,1717827044503,-1381.93423711,0.00013998,2]
[328814865,1717827044512,-271.53784341,0.00013998,2]
[328814867,1717827044522,-155.45078624,0.00013998,2]
[328814869,1717827044531,-263.45707997,0.00013998,2]
[328814871,1717827044540,-307.42542569,0.00013998,2]
[328814873,1717827044550,-155.0,0.00013998,2]
[328814875,1717827044560,-157.18183373,0.00013998,2]
[328814877,1717827044571,-282.87152954,0.00013998,2]
[328814879,1717827044580,-176.53489944,0.00013998,2]
[328814881,1717827044590,-155.21468173,0.00013998,2]
[328814883,1717827044599,-193.56420238,0.00013998,2]
[328814885,1717827044610,-229.35922986,0.00013998,2]
[328814887,1717827044619,-241.30909122,0.00013998,2]
[328814889,1717827044629,-208.27486762,0.00013998,2]
[328814891,1717827044639,-155.96878347,0.00013998,2]
[328814893,1717827044649,-155.12269629,0.00013998,2]
[328814895,1717827044659,-339.2071531,0.00013998,2]
[328814897,1717827044668,-446.8178927,0.00013998,2]
[328814899,1717827044678,-160.25586256,0.00013999,2]
[328814901,1717827044688,-156.70126362,0.00013999,2]
[328814903,1717827044698,-212.10857993,0.00013999,2]
[328814905,1717827044708,-155.4132688,0.00013999,2]
[328814907,1717827044718,-155.64006224,0.00013999,2]
[328814909,1717827044727,-203.39535456,0.00013999,2]
[328814911,1717827044738,-150.0,0.00013999,2]
[328814913,1717827044747,-482100.43899036,0.00014,2]
[328814952,1717827046193,-500.0,0.00013999,2]
[328814953,1717827046202,-355.0,0.00013999,2]
[328814954,1717827046213,-20445.70000001,0.00014,2]
[328814955,1717827046224,-400.0,0.00014,2]
[328814956,1717827046632,-5230.41479082,0.00014,2]
[328814963,1717827393673,-4824.50093616,0.00033086,120]
[328814964,1717827393735,-2000.0,0.00033086,30]
[328814965,1717827393788,-1000.0,0.00033086,30]
[328814966,1717827393843,-1179.54,0.00033086,60]
[328814967,1717827393909,-2497.64,0.00033086,120]
[328814968,1717827393974,-6074.8250747,0.00033086,60]
[328814969,1717827394041,-1000.0,0.00033086,30]
[328814970,1717827394116,-1000.0,0.00033086,30]
[328814971,1717827394185,-1000.0,0.00033086,30]
[328814972,1717827394255,-1000.0,0.00033086,30]
[328814973,1717827394325,-1000.0,0.00033086,30]
[328814974,1717827394393,-1000.0,0.00033086,30]
[328814975,1717827394459,-1000.0,0.00033086,30]
[328814976,1717827394522,-1000.0,0.00033086,30]
[328814977,1717827394584,-1000.0,0.00033086,30]
[328814978,1717827394645,-1000.0,0.00033086,30]
[328814979,1717827394694,-1000.0,0.00033086,30]
[328814980,1717827394755,-1000.0,0.00033086,30]
[328814981,1717827394808,-1000.0,0.00033086,30]
[328814982,1717827394865,-1000.0,0.00033086,30]
[328814983,1717827394928,-1000.0,0.00033086,30]
[328814984,1717827394988,-1111.18386703,0.00033086,30]
[328814985,1717827395039,-432.67395979,0.00033086,90]
[328814986,1717827395090,-2984.89896617,0.00033086,30]
[328814987,1717827395137,-2254.32788613,0.00033086,30]
[328814988,1717827395187,-525.20082282,0.00033086,60]
[328814989,1717827395238,-2136.6141488,0.00033086,120]
[328814990,1717827395288,-2602.69756491,0.00033086,30]
[328814991,1717827395338,-2224.96619505,0.00033086,30]
[328814992,1717827395387,-2634.33337869,0.00033086,120]
[328814993,1717827395447,-2224.73311894,0.00033086,120]
[328814994,1717827395499,-1831.85346799,0.00033086,30]
[328814995,1717827395559,-3161.61878473,0.00033086,30]
[328814996,1717827395619,-2969.37265426,0.00033086,120]
[328814997,1717827395681,-2500.0,0.00033086,30]
[328814998,1717827395742,-2000.0,0.00033086,90]
[328814999,1717827395804,-1839.10055673,0.00033086,120]
[328815000,1717827395868,-3000.0,0.00033086,30]
[328815001,1717827395930,-3234.42748246,0.00033086,120]
[328815002,1717827395991,-939.45221717,0.00033086,120]
[328815003,1717827396051,-308.4142323,0.00033086,120]
[328815004,1717827396106,-2972.57975668,0.00033086,120]
[328815005,1717827396156,-265.16075661,0.00033086,120]
[328815006,1717827396202,-2518.73663859,0.00033086,120]
[328815007,1717827396251,-2884.71084288,0.00033086,30]
[328815008,1717827396305,-185.81121517,0.00033086,30]
[328815009,1717827396362,-1281.34706727,0.00033086,120]
[328815010,1717827396430,-3168.40367174,0.00033086,120]
[328815011,1717827396503,-6371.94159999,0.00033086,120]
[328815012,1717827396573,-1879.05654643,0.00033086,120]
[328815013,1717827396640,-255.47462766,0.00033086,30]
[328815014,1717827396708,-2523.60533101,0.00033086,30]
[328815015,1717827396776,-387.3387919,0.00033086,120]
[328815016,1717827396843,-1662.15284119,0.00033086,30]
[328815017,1717827396891,-514.35300121,0.00033086,30]
[328815018,1717827396941,-2000.0,0.00033086,30]
[328815019,1717827396989,-2000.0,0.00033086,30]
[328815020,1717827397038,-2000.0,0.00033086,30]
[328815021,1717827397084,-2000.0,0.00033086,30]
[328815022,1717827397142,-2000.0,0.00033086,30]
[328815023,1717827397348,-521.40980614,0.00033086,120]
[328815024,1717827397412,-691.0,0.00033086,30]
[328815025,1717827397474,-190.0,0.00033086,30]
[328815026,1717827397544,-1010.84041943,0.00033086,30]
[328815027,1717827397607,-2816.95465653,0.00033086,30]
[328815028,1717827397669,-2685.52366426,0.00033086,30]
[328815029,1717827397717,-1345.77360972,0.00033086,120]
[328815030,1717827397766,-224.77796523,0.00033086,120]
[328815031,1717827397819,-1202.24974459,0.00033086,120]
[328815032,1717827397865,-1047.41104759,0.00033086,120]
[328815033,1717827397911,-160.0,0.00033086,30]
[328815034,1717827397963,-5352.72874379,0.00033086,30]
[328815035,1717827398010,-1626.86249139,0.00033086,30]
[328815036,1717827398059,-34077.69923152,0.00033086,30]
[328815037,1717827398106,-2000.0,0.00033086,30]
[328815038,1717827398155,-45079.67892723,0.00033086,30]
[328815039,1717827398215,-5807.3201813,0.00033086,30]
[328815040,1717827398278,-250.0,0.00033086,31]
[328815041,1717827398340,-2168.73544063,0.00033086,120]
[328815042,1717827398403,-260.0,0.00033086,120]
[328815043,1717827398452,-1291.36750418,0.00033086,30]
[328815044,1717827398503,-297.84093309,0.00033086,30]
[328815045,1717827398558,-4005.1699,0.00033086,30]
[328815046,1717827398606,-65961.71207969,0.00033086,30]
[328815047,1717827398655,-280.95177039,0.00033086,120]
[328815048,1717827398705,-190.0,0.00033086,30]
[328815049,1717827398755,-168.34588556,0.00033086,30]
[328815050,1717827398804,-4989.99397696,0.00033086,120]
[328815051,1717827398854,-403.77256631,0.00033086,30]
[328815052,1717827398901,-2041.48,0.00033086,90]
[328815053,1717827398951,-11702.0,0.00033086,60]
[328815054,1717827399009,-2094.0,0.00033086,30]
[328815055,1717827399072,-4200.0,0.00033086,120]
[328815056,1717827399129,-1060.799999,0.00033086,30]
[328815057,1717827408448,-2996.51122439,0.000288,60]
[328815058,1717827408507,-170.24634872,0.00029616,30]
[328815059,1717827408568,-4489.186772,0.000298,30]
[328815060,1717827408752,-4489.186772,0.000305,30]
[328815061,1717827408806,-600.0,0.00031,32]
[328815062,1717827408863,-500.0,0.000318,30]
[328815063,1717827408918,-900.0,0.00032,33]
[328815064,1717827408971,-1500.0,0.00032,30]
[328815065,1717827409029,-150.0,0.00032015,120]
[328815066,1717827409084,-150.0,0.00032468,120]
[328815067,1717827409137,-250.0,0.00032484,31]
[328815068,1717827409191,-182.9,0.00032548,30]
[328815069,1717827409246,-150.0,0.00032636,120]
[328815070,1717827409299,-500.0,0.00032845,30]
[328815071,1717827409352,-979.95,0.00032845,30]
[328815072,1717827409409,-2000.0,0.00032877,30]
[328815073,1717827409462,-2000.0,0.00032877,30]